bitfinex/quotes_BTCUSD_20220307
["timestamp","ask_amount","ask_price","bid_price","bid_amount"]
[1646622401679,0.0026381,37686.0,37685.0,0.00026535]
[1646622401946,0.0026381,37686.0,37685.0,0.04906535]
[1646622405147,0.0046381,37686.0,37685.0,0.04906535]
[1646622405348,0.0046381,37686.0,37685.0,0.16221723]
[1646622405349,0.00415009,37686.0,37685.0,0.16221723]
[1646622405782,0.00415009,37686.0,37685.0,0.16235605]
[1646622406382,0.00215009,37686.0,37685.0,0.1623545]
[1646622406582,0.324709,37683.0,37680.0,0.63569704]
[1646622406783,1.76339609,37683.0,37681.0,0.0488]
[1646622406987,1.76339609,37683.0,37682.0,0.01192079]
[1646622407183,1.76339609,37683.0,37682.0,0.06072079]
[1646622408986,1.76339609,37683.0,37682.0,0.05680079]
[1646622409186,1.76339609,37683.0,37682.0,0.00762079]
[1646622409447,1.76339609,37683.0,37682.0,0.05642079]
[1646622409647,1.76339609,37683.0,37682.0,0.05636079]
[1646622410450,1.76339609,37683.0,37682.0,0.05627079]
[1646622411951,0.324709,37683.0,37682.0,0.05627079]
[1646622412554,1.38682927,37683.0,37680.0,0.16035466]
[1646622412755,0.99681027,37683.0,37675.0,0.0007961]
[1646622412952,0.19294352,37676.0,37675.0,0.0007961]
[1646622413176,0.63296252,37676.0,37675.0,0.0007961]
[1646622413375,1.60365277,37676.0,37675.0,0.0007961]
[1646622413581,0.8107301,37676.0,37675.0,0.0007961]
[1646622413774,0.27559942,37669.0,37661.0,0.1942545]
[1646622413974,0.27559942,37669.0,37668.0,0.00079625]
[1646622414777,0.27559942,37669.0,37654.0,0.0498]
[1646622414778,0.27559942,37669.0,37656.0,0.04125511]
[1646622414978,0.27559942,37669.0,37656.0,0.001]
[1646622414979,0.31434906,37668.0,37656.0,0.001]
[1646622415177,0.31434906,37668.0,37661.0,0.00079639]
[1646622415178,0.27606171,37663.0,37661.0,0.00079639]
[1646622415379,0.31434906,37666.0,37661.0,0.00079639]
[1646622415579,0.1,37667.0,37661.0,0.00079639]
[1646622415978,0.1,37667.0,37657.0,0.19579203]
[1646622416181,0.1,37667.0,37660.0,0.20164848]
[1646622416379,0.1,37669.0,37660.0,0.20164848]
[1646622416677,0.55968573,37670.0,37660.0,0.20164848]
[1646622417326,0.60968573,37670.0,37660.0,0.20164848]
[1646622419127,0.30088,37670.0,37665.0,0.17118794]
[1646622419327,0.20188,37670.0,37665.0,0.17118794]
[1646622419529,0.20188,37670.0,37663.0,0.0017487]
[1646622420129,0.30188,37670.0,37663.0,0.0017487]
[1646622420529,0.1,37674.0,37663.0,0.0017487]
[1646622420780,0.22757017,37671.0,37664.0,0.16979011]
[1646622421182,0.27757017,37671.0,37664.0,0.16979011]
[1646622421582,0.20082,37675.0,37664.0,0.16979011]
[1646622421783,1.1957465,37679.0,37664.0,0.16979011]
[1646622421784,0.01327,37680.0,37667.0,0.15]
[1646622421984,0.324709,37683.0,37668.0,0.36207998]
[1646622422182,0.324709,37683.0,37670.0,0.01431361]
[1646622422385,0.324709,37683.0,37671.0,0.0488]
[1646622422589,0.324709,37683.0,37680.0,0.19508333]
[1646622422788,0.324709,37683.0,37682.0,0.0002654]
[1646622422985,0.324709,37683.0,37682.0,0.0490654]
[1646622426235,0.324709,37683.0,37682.0,0.16084132]
[1646622426838,0.324709,37683.0,37682.0,0.34591528]
[1646622427039,0.324709,37683.0,37682.0,0.0488]
[1646622427040,0.624709,37683.0,37682.0,0.0488]
[1646622427238,0.624709,37683.0,37675.0,0.00071816]
[1646622427239,0.02613,37682.0,37675.0,0.00071816]
[1646622427438,0.02613,37681.0,37675.0,0.00071816]
[1646622427640,0.02613,37678.0,37675.0,0.00071816]
[1646622427837,0.08441155,37677.0,37675.0,0.00071816]
[1646622428037,0.08441155,37677.0,37663.0,0.04075502]
[1646622428038,0.46033998,37676.0,37663.0,0.04075502]
[1646622428278,0.15,37673.0,37663.0,0.04075502]
[1646622428477,0.325322,37675.0,37669.0,0.00015122]
[1646622428677,0.15,37672.0,37669.0,0.00071828]
[1646622429078,0.29473914,37671.0,37669.0,0.00071828]
[1646622429281,0.29473914,37671.0,37662.0,0.36894363]
[1646622429678,0.15,37669.0,37662.0,0.16177379]
[1646622430978,0.15,37669.0,37662.0,0.37108843]
[1646622431178,0.29473914,37671.0,37662.0,0.37108843]
[1646622431379,0.15,37670.0,37662.0,0.37108843]
[1646622431579,0.29473914,37671.0,37662.0,0.37098216]
[1646622431786,0.066395,37672.0,37662.0,0.37098216]
[1646622431787,0.13277493,37677.0,37663.0,0.35681638]
[1646622432034,0.066387,37677.0,37663.0,0.35681638]
[1646622432234,0.00215009,37686.0,37667.0,0.6098]
[1646622432433,0.00215009,37686.0,37668.0,0.22953521]
[1646622432635,0.17394359,37684.0,37681.0,0.17892129]
[1646622432833,0.17394359,37684.0,37682.0,0.0488]
[1646622435034,0.17394359,37684.0,37675.0,0.00063471]
[1646622435035,0.78272538,37683.0,37675.0,0.00063471]
[1646622435233,0.15,37677.0,37671.0,0.04030759]
[1646622435685,0.30980263,37677.0,37675.0,0.00063471]
[1646622435882,0.21808829,37676.0,37675.0,0.00063471]
[1646622436485,0.21808829,37676.0,37664.0,0.04297595]
[1646622436486,1.34953467,37676.0,37664.0,0.04297595]
[1646622436686,0.15,37667.0,37664.0,0.04297595]
[1646622437685,0.3501,37672.0,37664.0,0.04297595]
[1646622438085,0.2001,37672.0,37664.0,0.04297595]
[1646622438285,0.15,37669.0,37664.0,0.04297595]
[1646622438485,0.2001,37672.0,37664.0,0.04287495]
[1646622438685,0.2001,37672.0,37666.0,0.40724581]
[1646622439087,0.20064,37676.0,37668.0,0.02613]
[1646622439286,0.324709,37683.0,37673.0,0.00216117]
[1646622439931,0.324709,37683.0,37675.0,0.16521577]
[1646622440331,0.324709,37683.0,37676.0,0.0488]
[1646622441135,0.15,37682.0,37676.0,0.0488]
[1646622441533,0.15,37677.0,37676.0,0.0488]
[1646622441736,0.35901691,37674.0,37673.0,0.00216117]
[1646622442039,0.81703329,37674.0,37673.0,0.00216117]
[1646622442239,0.77060405,37674.0,37673.0,0.00216117]
[1646622443280,0.77560405,37674.0,37673.0,0.00216117]
[1646622444583,0.77560405,37674.0,37666.0,0.04051429]
[1646622444783,0.62060405,37674.0,37666.0,0.00063083]
[1646622445082,0.62060405,37674.0,37662.0,0.23861005]
[1646622445281,0.15,37673.0,37662.0,0.23924068]
[1646622445680,0.15,37673.0,37662.0,0.54725706]
[1646622445882,0.15,37673.0,37664.0,0.18260003]
[1646622446081,0.15,37673.0,37665.0,0.30801638]
[1646622446281,0.1474,37674.0,37668.0,0.16054508]
[1646622446484,0.2874,37674.0,37668.0,0.16054508]
[1646622446681,0.2864,37674.0,37668.0,0.16054508]
[1646622446944,0.1464,37674.0,37668.0,0.16054508]
[1646622449347,0.1464,37674.0,37669.0,0.0488]
[1646622449750,0.1464,37674.0,37669.0,0.4273689]
[1646622449950,0.1464,37674.0,37671.0,0.21797575]
[1646622450148,0.1464,37674.0,37672.0,0.35681638]
[1646622450448,0.1464,37674.0,37673.0,0.41281638]
[1646622450695,0.1464,37674.0,37673.0,0.46161638]
[1646622450896,0.0001,37674.0,37673.0,0.48774638]
[1646622451097,0.0001,37674.0,37673.0,0.50270532]
[1646622451698,0.0001,37674.0,37673.0,0.47657532]
[1646622451900,0.0001,37674.0,37673.0,0.1536]
[1646622452304,0.29112283,37676.0,37673.0,0.1536]
[1646622452500,0.29112283,37676.0,37670.0,0.00027757]
[1646622452700,0.31375298,37678.0,37670.0,0.04083446]
[1646622452901,0.31375298,37678.0,37670.0,0.00027757]
[1646622453502,0.17375298,37678.0,37670.0,0.00027757]
[1646622453902,0.14,37677.0,37670.0,0.00027757]
[1646622454531,0.14,37671.0,37670.0,0.00027757]
[1646622455532,0.14,37671.0,37666.0,0.00063062]
[1646622455730,0.14,37671.0,37665.0,0.002]
[1646622455731,0.37314922,37671.0,37665.0,0.002]
[1646622456331,0.23314922,37671.0,37665.0,0.002]
[1646622456733,0.23314922,37671.0,37663.0,0.04095746]
[1646622456931,0.20004,37672.0,37663.0,0.04032679]
[1646622457132,0.20004,37672.0,37664.0,0.30665202]
[1646622457536,0.40587218,37672.0,37664.0,0.30665202]
[1646622457732,0.20004,37672.0,37664.0,0.30665202]
[1646622457935,0.20088,37679.0,37666.0,0.04281062]
[1646622458189,0.20088,37679.0,37668.0,0.02613]
[1646622458382,0.20088,37679.0,37669.0,0.0488]
[1646622458582,0.20088,37679.0,37670.0,0.0488]
[1646622458785,0.39959907,37679.0,37673.0,0.17464459]
[1646622458987,0.23670305,37682.0,37674.0,0.0488]
[1646622459383,0.324709,37683.0,37674.0,0.0488]
[1646622459985,0.48606371,37683.0,37674.0,0.0488]
[1646622460585,0.48606371,37683.0,37674.0,0.35545202]
[1646622460787,0.48606371,37683.0,37674.0,0.0488]
[1646622461190,0.48606371,37683.0,37674.0,0.35545202]
[1646622461387,0.48606371,37683.0,37674.0,0.0488]
[1646622461791,0.48606371,37683.0,37674.0,0.35545202]
[1646622462777,0.48606371,37683.0,37674.0,0.0488]
[1646622462959,0.48606371,37683.0,37674.0,0.35545202]
[1646622463359,0.48606371,37683.0,37674.0,0.0488]
[1646622463560,0.48606371,37683.0,37674.0,0.0415]
[1646622463960,0.48606371,37683.0,37674.0,0.08143789]
[1646622464361,0.48606371,37683.0,37674.0,0.38808991]
[1646622464561,0.48606371,37683.0,37674.0,0.08143789]
[1646622464763,0.48606371,37683.0,37674.0,0.38808991]
[1646622464962,0.48606371,37683.0,37674.0,0.35808991]
[1646622465163,0.324709,37683.0,37674.0,0.35808991]
[1646622465563,0.324709,37683.0,37676.0,3.248e-05]
[1646622466399,0.14,37681.0,37676.0,3.248e-05]
[1646622466604,0.14,37679.0,37676.0,3.248e-05]
[1646622467002,0.47155184,37678.0,37676.0,3.248e-05]
[1646622467200,0.50013945,37677.0,37676.0,3.248e-05]
[1646622467400,0.79118899,37677.0,37676.0,3.248e-05]
[1646622467601,0.79118899,37677.0,37675.0,4.064e-05]
[1646622467602,1.2,37676.0,37675.0,4.064e-05]
[1646622467799,1.65542184,37676.0,37675.0,4.064e-05]
[1646622468002,2.45272184,37676.0,37675.0,4.064e-05]
[1646622468200,1.68155184,37676.0,37675.0,4.064e-05]
[1646622468398,1.82155184,37676.0,37675.0,4.064e-05]
[1646622469454,2.77485184,37676.0,37675.0,4.064e-05]
[1646622469752,2.77485184,37676.0,37668.0,0.00063058]
[1646622469753,0.390019,37672.0,37668.0,0.00063058]
[1646622469954,0.23998489,37669.0,37668.0,0.00063058]
[1646622470151,0.23998489,37669.0,37668.0,0.00049783]
[1646622470152,0.77265329,37669.0,37668.0,0.00049783]
[1646622470351,0.26413191,37660.0,37656.0,0.001]
[1646622470560,0.33199191,37660.0,37656.0,0.001]
[1646622470953,0.35812191,37660.0,37656.0,0.001]
[1646622471352,0.06986,37660.0,37656.0,0.001]
[1646622471753,0.142,37660.0,37656.0,0.001]
[1646622472153,0.002,37660.0,37656.0,0.001]
[1646622472754,0.19,37663.0,37656.0,0.001]
[1646622472755,0.14,37663.0,37656.0,0.001]
[1646622474294,0.14,37660.0,37656.0,0.001]
[1646622474995,0.25917556,37661.0,37656.0,0.001]
[1646622475395,0.14,37663.0,37656.0,0.001]
[1646622475596,0.14,37662.0,37656.0,0.001]
[1646622475994,0.20022923,37662.0,37658.0,0.0002706]
[1646622476194,0.50565107,37662.0,37658.0,0.0002706]
[1646622476399,0.20022923,37662.0,37658.0,0.0002706]
[1646622476597,0.14,37662.0,37658.0,0.0002706]
[1646622476795,0.2001,37664.0,37658.0,0.0002706]
[1646622477032,0.02613,37662.0,37658.0,0.0002706]
[1646622477633,0.2001,37664.0,37654.0,0.01351707]
[1646622477835,0.2001,37664.0,37658.0,0.01336061]
[1646622478032,8.127e-05,37673.0,37659.0,0.0488]
[1646622478232,8.127e-05,37673.0,37659.0,0.04667761]
[1646622478441,8.127e-05,37673.0,37654.0,0.00050754]
[1646622478442,0.14,37660.0,37654.0,0.00050754]
[1646622478734,0.530019,37655.0,37654.0,0.00050754]
[1646622478933,0.16613,37655.0,37654.0,0.00050754]
[1646622479334,0.30285376,37656.0,37654.0,0.00050754]
[1646622479335,0.05,37656.0,37654.0,0.00050754]
[1646622479737,0.14,37658.0,37652.0,0.00092733]
[1646622479935,0.20082,37661.0,37652.0,0.00092733]
[1646622480336,0.30542184,37660.0,37653.0,0.18596]
[1646622480537,0.14,37660.0,37652.0,0.00092733]
[1646622480792,0.20082,37661.0,37652.0,0.20522879]
[1646622480996,0.8329,37670.0,37653.0,0.30542184]
[1646622481190,0.7676,37669.0,37654.0,0.06517932]
[1646622481393,0.7676,37669.0,37660.0,0.00026879]
[1646622481591,1.03348,37670.0,37661.0,0.1975583]
[1646622481789,0.58213461,37670.0,37661.0,0.18690904]
[1646622481996,0.58213461,37670.0,37660.0,0.00026879]
[1646622481997,0.14,37663.0,37660.0,0.00026879]
[1646622482190,0.16613,37661.0,37660.0,0.00026879]
[1646622482790,0.16613,37661.0,37658.0,0.00066072]
[1646622482791,0.00053757,37659.0,37658.0,0.00066072]
[1646622482989,0.16666757,37659.0,37658.0,0.00066072]
[1646622483190,0.62208941,37659.0,37658.0,0.00066072]
[1646622483393,0.02613,37656.0,37652.0,0.00092733]
[1646622483592,0.16613,37654.0,37652.0,0.00092733]
[1646622483790,0.16613,37654.0,37646.0,0.03968426]
[1646622483791,0.02613,37652.0,37646.0,0.03968426]
[1646622483992,0.02613,37646.0,37638.0,0.04128024]
[1646622484191,0.32047432,37642.0,37638.0,0.04128024]
[1646622484436,0.29434432,37642.0,37638.0,0.04128024]
[1646622484639,0.14,37641.0,37638.0,0.04128024]
[1646622484838,0.13974443,37640.0,37638.0,0.04128024]
[1646622485239,0.15530858,37641.0,37638.0,0.04128024]
[1646622485439,0.18143858,37641.0,37638.0,0.04128024]
[1646622486243,0.34434432,37642.0,37638.0,0.001]
[1646622486244,0.16587443,37639.0,37638.0,0.001]
[1646622487040,0.46997945,37639.0,37638.0,0.001]
[1646622487340,0.16587443,37639.0,37638.0,0.001]
[1646622487541,0.46997945,37639.0,37638.0,0.001]
[1646622487742,0.21487868,37640.0,37638.0,0.001]
[1646622487941,0.30410502,37644.0,37638.0,0.001]
[1646622488204,0.066439,37649.0,37638.0,0.001]
[1646622488400,0.0175993,37649.0,37638.0,0.001]
[1646622488908,0.28102201,37647.0,37638.0,0.0401183]
[1646622489303,0.04227064,37640.0,37638.0,0.001]
[1646622489504,0.33023502,37639.0,37638.0,0.001]
[1646622490004,0.33023502,37639.0,37637.0,0.00140097]
[1646622490208,0.26587443,37638.0,37637.0,0.00086796]
[1646622490602,0.54384945,37638.0,37637.0,0.00086796]
[1646622491605,0.23974443,37638.0,37637.0,0.00086796]
[1646622492047,0.05007763,37639.0,37637.0,0.00086796]
[1646622492251,7.763e-05,37639.0,37637.0,0.00086796]
[1646622493047,7.763e-05,37639.0,37637.0,0.19904855]
[1646622493846,7.763e-05,37639.0,37637.0,0.03994415]
[1646622494647,7.763e-05,37639.0,37637.0,0.02994415]
[1646622494847,7.763e-05,37639.0,37637.0,0.00494415]
[1646622495880,0.30290613,37642.0,37638.0,0.00013666]
[1646622496086,6.847e-05,37642.0,37638.0,0.00013666]
[1646622496481,0.32903613,37642.0,37638.0,0.00013666]
[1646622496883,0.24802854,37641.0,37638.0,0.00013666]
[1646622497083,0.30290613,37642.0,37638.0,0.00013666]
[1646622497283,6.847e-05,37642.0,37638.0,0.00013666]
[1646622497483,0.02619847,37642.0,37638.0,0.00013666]
[1646622497685,6.847e-05,37642.0,37638.0,0.00013666]
[1646622498086,6.847e-05,37642.0,37638.0,0.03976869]
[1646622499536,0.02613,37641.0,37638.0,0.03976869]
[1646622499935,0.23443061,37642.0,37638.0,0.03976869]
[1646622500537,0.22943061,37642.0,37638.0,0.03976869]
[1646622501340,6.859e-05,37642.0,37640.0,0.00013643]
[1646622501543,0.00206859,37642.0,37641.0,0.1536]
[1646622501744,0.20088,37651.0,37642.0,1.16235189]
[1646622501952,0.01778561,37659.0,37646.0,0.01025557]
[1646622502141,0.01778561,37659.0,37647.0,0.0488]
[1646622502142,0.00053757,37659.0,37647.0,0.0488]
[1646622502340,0.00053757,37659.0,37655.0,0.21200402]
[1646622502540,0.00053757,37659.0,37656.0,0.36189323]
[1646622502741,0.00053757,37659.0,37656.0,0.37516423]
[1646622502939,0.00053757,37659.0,37658.0,0.00026557]
[1646622503404,0.00053757,37659.0,37658.0,0.04906557]
[1646622503802,0.00053757,37659.0,37658.0,0.00026557]
[1646622504403,0.00053757,37659.0,37658.0,0.04906557]
[1646622505401,0.00053757,37659.0,37658.0,0.08882551]
[1646622506203,0.00059834,37659.0,37658.0,0.08882551]
[1646622510340,0.00059834,37659.0,37658.0,0.25620486]
[1646622510787,0.00059834,37659.0,37658.0,0.26646043]
[1646622510988,0.00059834,37659.0,37658.0,0.54863303]
[1646622511186,0.00059834,37659.0,37658.0,0.548775]
[1646622512789,0.00059834,37659.0,37658.0,0.25634683]
[1646622515031,0.00059834,37659.0,37658.0,0.2666024]
[1646622515233,0.00059834,37659.0,37658.0,0.3927324]
[1646622515429,0.00059834,37659.0,37658.0,0.6884418]
[1646622515730,8.127e-05,37673.0,37660.0,0.02613]
[1646622515931,8.127e-05,37673.0,37663.0,0.07662657]
[1646622516130,8.127e-05,37673.0,37664.0,0.35163766]
[1646622516429,8.127e-05,37673.0,37665.0,0.17906321]
[1646622516629,8.127e-05,37673.0,37666.0,0.0488]
[1646622517430,8.127e-05,37673.0,37667.0,0.30283766]
[1646622517630,0.00020827,37671.0,37668.0,0.0488]
[1646622517833,0.00020827,37671.0,37669.0,0.0488]
[1646622518185,0.00020827,37671.0,37670.0,0.0488]
[1646622518391,0.00020827,37671.0,37668.0,0.0488]
[1646622518392,0.1464,37669.0,37668.0,0.0488]
[1646622518587,0.1464,37669.0,37668.0,0.1536]
[1646622518987,0.1464,37669.0,37668.0,0.45643766]
[1646622519188,0.1464,37669.0,37668.0,0.16385557]
[1646622519386,0.1464,37669.0,37668.0,0.34699443]
[1646622519790,0.1464,37669.0,37668.0,0.38764377]
[1646622520190,0.00020827,37670.0,37668.0,0.38764377]
[1646622520191,0.00020827,37670.0,37669.0,1.149899]
[1646622520394,0.00020827,37670.0,37669.0,1.329629]
[1646622520590,8.127e-05,37673.0,37670.0,0.72613]
[1646622520791,8.127e-05,37673.0,37672.0,0.02639544]
[1646622520989,8.127e-05,37673.0,37672.0,0.23097012]
[1646622521290,8.127e-05,37673.0,37672.0,0.24122569]
[1646622522035,8.127e-05,37673.0,37672.0,0.25511955]
[1646622522636,8.127e-05,37673.0,37672.0,0.32147155]
[1646622522836,8.127e-05,37673.0,37672.0,0.28508598]
[1646622523138,8.127e-05,37673.0,37672.0,0.31121598]
[1646622523537,8.127e-05,37673.0,37672.0,0.32147155]
[1646622523735,8.127e-05,37673.0,37672.0,0.36107337]
[1646622524736,8.127e-05,37673.0,37672.0,0.3508178]
[1646622524936,8.127e-05,37673.0,37672.0,0.36107337]
[1646622525980,8.127e-05,37673.0,37672.0,0.36086082]
[1646622526179,8.127e-05,37673.0,37672.0,0.36100455]
[1646622526379,0.00020827,37674.0,37673.0,1.17613]
[1646622526685,0.00020827,37674.0,37673.0,0.15338745]
[1646622526882,0.63211959,37686.0,37673.0,0.15338745]
[1646622527083,0.32933199,37686.0,37677.0,0.1764105]
[1646622527285,0.32933199,37686.0,37677.0,0.2252105]
[1646622527481,0.13974443,37685.0,37677.0,0.2252105]
[1646622528290,0.00020827,37683.0,37677.0,0.2252105]
[1646622528684,0.00020827,37683.0,37677.0,0.0488]
[1646622529283,0.18958756,37686.0,37677.0,0.0488]
[1646622529537,0.00020827,37682.0,37677.0,0.0488]
[1646622529739,0.00020827,37682.0,37679.0,0.2235487]
[1646622530137,0.00020827,37682.0,37677.0,0.115152]
[1646622530538,0.13974443,37688.0,37677.0,0.115152]
[1646622530738,0.00020827,37682.0,37677.0,0.115152]
[1646622531238,0.00020827,37682.0,37679.0,0.00014292]
[1646622531436,0.00020827,37682.0,37680.0,0.0488]
[1646622531636,0.23502958,37684.0,37680.0,0.0488]
[1646622532036,0.3027876,37688.0,37680.0,0.0488]
[1646622532037,0.00020827,37682.0,37680.0,0.0488]
[1646622532838,0.17483479,37684.0,37680.0,0.0488]
[1646622533284,0.00020827,37683.0,37680.0,0.0488]
[1646622534080,0.17483479,37684.0,37680.0,0.0488]
[1646622534280,0.00020827,37683.0,37680.0,0.0488]
[1646622535282,0.17483479,37684.0,37680.0,0.0488]
[1646622535481,0.00020827,37683.0,37680.0,0.0488]
[1646622535681,0.00020827,37683.0,37681.0,0.00014269]
[1646622536282,0.13974443,37682.0,37681.0,0.00014269]
[1646622536686,0.16395134,37688.0,37682.0,0.95]
[1646622536953,0.86366789,37694.0,37681.0,0.00014269]
[1646622536954,0.1,37698.0,37685.0,0.01025557]
[1646622537148,0.13974443,37706.0,37686.0,0.0488]
[1646622537348,0.13974443,37702.0,37694.0,0.066319]
[1646622537555,0.13974443,37702.0,37698.0,0.00026521]
[1646622537754,0.13974443,37702.0,37701.0,0.00026521]
[1646622537948,0.13974443,37702.0,37701.0,0.04906521]
[1646622538948,0.33276884,37702.0,37701.0,0.04906521]
[1646622543482,0.13974443,37702.0,37701.0,0.04906521]
[1646622543682,0.25962523,37707.0,37701.0,0.04906521]
[1646622543882,0.25962523,37707.0,37701.0,0.0488]
[1646622543883,0.00020845,37703.0,37701.0,0.0488]
[1646622544088,0.13974443,37702.0,37701.0,0.0488]
[1646622544282,0.13974443,37702.0,37701.0,0.15338745]
[1646622544737,0.13974443,37702.0,37690.0,0.158781]
[1646622544738,0.07166745,37694.0,37690.0,0.158781]
[1646622544944,0.13974443,37691.0,37684.0,0.22836415]
[1646622545142,0.13974443,37685.0,37684.0,0.22836415]
[1646622545338,0.13974443,37685.0,37672.0,0.03960182]
[1646622545339,0.16587443,37685.0,37672.0,0.03960182]
[1646622545637,0.02613,37687.0,37679.0,0.002]
[1646622545837,0.13974443,37680.0,37679.0,0.002]
[1646622546838,0.13974443,37680.0,37676.0,0.19121409]
[1646622547239,0.13974443,37680.0,37677.0,0.01378777]
[1646622547438,0.05,37689.0,37677.0,0.01378777]
[1646622547439,0.13974443,37684.0,37677.0,0.01378777]
[1646622547641,0.00019628,37686.0,37678.0,0.163927]
[1646622548189,0.00019628,37686.0,37678.0,0.230274]
[1646622548584,0.13974443,37690.0,37678.0,0.230274]
[1646622548785,0.13974443,37690.0,37684.0,0.16099273]
[1646622548995,0.00020799,37686.0,37684.0,0.16099273]
[1646622549188,0.00020799,37686.0,37685.0,0.14]
[1646622549384,0.13495242,37692.0,37685.0,0.14]
[1646622549585,0.13495242,37691.0,37684.0,0.16099273]
[1646622550587,0.13495242,37689.0,37684.0,0.16099273]
[1646622550788,0.32613,37694.0,37688.0,0.14]
[1646622550986,0.32613,37694.0,37684.0,0.16099273]
[1646622550987,0.13495242,37689.0,37684.0,0.16099273]
[1646622551189,0.13495242,37689.0,37688.0,0.14]
[1646622552436,0.28,37687.0,37684.0,0.16099273]
[1646622552634,0.28,37687.0,37686.0,0.06772464]
[1646622553034,0.28,37687.0,37686.0,0.06772195]
[1646622554933,0.28,37687.0,37686.0,0.06260034]
[1646622555133,0.28,37687.0,37683.0,0.12004082]
[1646622555334,0.28,37687.0,37683.0,0.04045082]
[1646622556183,0.28,37687.0,37685.0,0.195101]
[1646622557985,0.28,37687.0,37684.0,0.01325]
[1646622558785,0.26,37687.0,37684.0,0.01325]
[1646622558986,0.26,37687.0,37685.0,0.17296678]
[1646622559934,0.26,37687.0,37682.0,0.01325]
[1646622560135,0.13495242,37685.0,37681.0,0.01325]
[1646622560332,0.13495242,37685.0,37684.0,0.135]
[1646622560934,0.26,37687.0,37684.0,0.35332692]
[1646622561133,0.39495242,37687.0,37686.0,0.00013428]
[1646622565898,0.26,37687.0,37684.0,0.21410014]
[1646622568238,0.26,37687.0,37684.0,0.00013428]
[1646622568837,0.39495242,37687.0,37684.0,0.00013428]
[1646622569241,0.39495242,37687.0,37679.0,0.19506762]
[1646622569242,0.054084,37682.0,37679.0,0.19506762]
[1646622569439,0.31108242,37680.0,37679.0,0.014]
[1646622569641,0.61108242,37680.0,37672.0,0.03976232]
[1646622569838,0.31108242,37673.0,37672.0,0.03976232]
[1646622570243,0.92788856,37673.0,37672.0,0.03960182]
[1646622570695,0.92788856,37673.0,37665.0,0.04031556]
[1646622570696,0.02613,37672.0,37665.0,0.04031556]
[1646622570890,0.16108242,37666.0,37665.0,0.04031556]
[1646622571488,0.16108242,37666.0,37665.0,0.02515503]
[1646622572796,0.066397,37676.0,37665.0,0.02515503]
[1646622572797,0.13495242,37669.0,37665.0,0.02515503]
[1646622572990,0.13495242,37670.0,37665.0,0.02515503]
[1646622573989,0.13495242,37670.0,37667.0,0.1678976]
[1646622574189,0.2192652,37673.0,37667.0,0.1678976]
[1646622574657,0.13495242,37670.0,37667.0,0.1678976]
[1646622575060,0.13495242,37670.0,37665.0,0.02515503]
[1646622575258,0.2192652,37673.0,37665.0,0.02515503]
[1646622575461,0.13495242,37670.0,37665.0,0.02515503]
[1646622575859,0.13495242,37670.0,37665.0,0.02528427]
[1646622576262,0.02613,37672.0,37665.0,0.02528427]
[1646622576459,0.13495242,37668.0,37665.0,0.02528427]
[1646622576764,0.02613,37672.0,37665.0,0.02528427]
[1646622576765,0.16108242,37666.0,37665.0,0.02528427]
[1646622577159,0.36537689,37666.0,37665.0,0.02528427]
[1646622579281,0.16108242,37666.0,37665.0,0.02528427]
[1646622579482,0.27533457,37669.0,37665.0,0.02528427]
[1646622579682,1.080088,37681.0,37665.0,0.02528427]
[1646622579683,0.13495242,37671.0,37665.0,0.02528427]
[1646622579882,0.2319,37675.0,37666.0,0.0531]
[1646622580184,0.13495242,37681.0,37672.0,0.17522805]
[1646622580381,0.13495242,37681.0,37672.0,0.01291695]
[1646622580584,0.19160426,37685.0,37671.0,0.17677237]
[1646622580585,0.13495242,37679.0,37671.0,0.17677237]
[1646622580984,0.13495242,37677.0,37670.0,0.0531]
[1646622581383,0.28833747,37681.0,37670.0,0.0531]
[1646622581584,0.02613,37674.0,37670.0,0.0531]
[1646622581784,0.02613,37674.0,37667.0,0.00016052]
[1646622582046,0.16108242,37674.0,37667.0,0.00016052]
[1646622582250,0.16108242,37674.0,37665.0,0.25421967]
[1646622582449,0.16108242,37674.0,37665.0,0.02928427]
[1646622582647,0.21079008,37672.0,37665.0,0.02928427]
[1646622583045,0.21079008,37672.0,37665.0,0.02528427]
[1646622584048,0.3457425,37672.0,37665.0,0.02528427]
[1646622584248,0.13495242,37668.0,37665.0,0.02528427]
[1646622584851,0.13495242,37672.0,37665.0,0.02528427]
[1646622585050,0.02613,37671.0,37665.0,0.02528427]
[1646622585706,0.02613,37671.0,37667.0,0.00012901]
[1646622586206,0.02613,37672.0,37667.0,0.00012901]
[1646622586406,0.00025802,37666.0,37665.0,0.02515503]
[1646622587505,0.00025802,37666.0,37665.0,0.82508017]
[1646622591141,0.00025802,37666.0,37665.0,0.82521751]
[1646622597533,0.00025802,37666.0,37665.0,0.96021751]
[1646622597736,0.00025802,37666.0,37665.0,0.82521751]
[1646622598136,0.00025802,37666.0,37665.0,1.25606203]
[1646622598333,0.00025802,37666.0,37665.0,1.26564438]
[1646622598535,0.00025802,37666.0,37665.0,1.23951438]
[1646622599237,0.25804438,37680.0,37669.0,0.066361]
[1646622599535,0.2459,37681.0,37671.0,0.21457844]
[1646622599735,0.2459,37681.0,37669.0,0.066361]
[1646622599736,0.50838377,37684.0,37672.0,0.0531]
[1646622599934,0.50838377,37684.0,37673.0,0.0531]
[1646622600135,0.13495242,37681.0,37676.0,0.19652163]
[1646622600537,0.20920245,37682.0,37674.0,0.0531]
[1646622600793,0.18500429,37678.0,37674.0,0.0531]
[1646622601794,0.3,37677.0,37674.0,0.0531]
[1646622601993,0.13495242,37676.0,37669.0,0.004]
[1646622602197,0.13495242,37676.0,37670.0,0.0489]
[1646622602594,0.35136978,37676.0,37670.0,0.0489]
[1646622602795,0.13495242,37676.0,37670.0,0.0489]
[1646622603194,0.02613,37683.0,37670.0,0.0489]
[1646622603396,0.02577793,37683.0,37670.0,0.0489]
[1646622603796,0.2523499,37680.0,37670.0,0.0489]
[1646622603995,0.13495242,37676.0,37670.0,0.0489]
[1646622604443,0.15728068,37679.0,37670.0,0.0489]
[1646622604638,0.13495242,37677.0,37670.0,0.0489]
[1646622605037,0.13495242,37677.0,37674.0,0.135]
[1646622605238,0.13495242,37677.0,37676.0,0.135]
[1646622606039,0.16108242,37677.0,37676.0,0.135]
[1646622606338,0.13495242,37677.0,37676.0,0.135]
[1646622607139,0.13495242,37677.0,37676.0,0.17435476]
[1646622607940,0.13595242,37677.0,37676.0,0.17435476]
[1646622608589,0.001,37677.0,37676.0,0.17435476]
[1646622609187,0.13495242,37680.0,37676.0,0.17435476]
[1646622609391,0.1640351,37682.0,37676.0,0.03935476]
[1646622609588,0.1,37686.0,37676.0,0.03935476]